[Event "*** Titled Tuesday Blitz AM"]
[Site "Chess.com"]
[Date "2020.01.07"]
[Round "3"]
[White "MattyDPerrine"]
[Black "RubensCezila"]
[Result "1-0"]
[WhiteElo "2349"]
[BlackElo "2587"]
[TimeControl "180+2"]
[EndTime "9:38:18 PST"]
[Termination "MattyDPerrine won by resignation"]

1. Nf3 {[%clk 0:03:00.3]} 1... Nf6 {[%clk 0:03:00.4]} 2. g3 {[%clk 0:02:59.7]}
2... g6 {[%clk 0:03:01.3]} 3. Bg2 {[%clk 0:03:00.9]} 3... Bg7 {[%clk 0:03:00.8]}
4. O-O {[%clk 0:03:02.3]} 4... O-O {[%clk 0:03:01.4]} 5. d4 {[%clk 0:03:01.8]}
5... d6 {[%clk 0:03:02]} 6. c4 {[%clk 0:03:02.8]} 6... Nbd7 {[%clk 0:03:02.8]}
7. Nc3 {[%clk 0:03:03.9]} 7... e5 {[%clk 0:03:03.4]} 8. e4 {[%clk 0:03:05]} 8...
c6 {[%clk 0:03:03.4]} 9. h3 {[%clk 0:03:01.1]} 9... Qb6 {[%clk 0:03:02.9]} 10.
c5 {[%clk 0:02:51.1]} 10... dxc5 {[%clk 0:03:02.7]} 11. dxe5 {[%clk 0:02:52.4]}
11... Ne8 {[%clk 0:03:03.3]} 12. e6 {[%clk 0:02:53.8]} 12... fxe6 {[%clk
0:02:59.8]} 13. Ng5 {[%clk 0:02:54.9]} 13... Ndf6 {[%clk 0:02:26.8]} 14. e5
{[%clk 0:02:31]} 14... Nd5 {[%clk 0:02:26]} 15. f4 {[%clk 0:02:25.1]} 15... Nxc3
{[%clk 0:02:25.4]} 16. bxc3 {[%clk 0:02:26.1]} 16... Nc7 {[%clk 0:02:26.4]} 17.
c4 {[%clk 0:02:12.1]} 17... Qa6 {[%clk 0:02:03.1]} 18. Qd6 {[%clk 0:00:53.2]}
18... h6 {[%clk 0:01:10.1]} 19. Ne4 {[%clk 0:00:28.9]} 19... Qxc4 {[%clk
0:01:10.4]} 20. Qxc7 {[%clk 0:00:25.5]} 20... Qd4+ {[%clk 0:01:09.9]} 21. Be3
{[%clk 0:00:27.1]} 21... Qxe3+ {[%clk 0:01:10.9]} 22. Kh2 {[%clk 0:00:28.5]}
22... c4 {[%clk 0:00:44.5]} 23. Rac1 {[%clk 0:00:19.6]} 23... Qb6 {[%clk
0:00:29.7]} 24. Qe7 {[%clk 0:00:20.7]} 24... Rf7 {[%clk 0:00:23.1]} 25. Qe8+
{[%clk 0:00:19.8]} 25... Rf8 {[%clk 0:00:23.9]} 26. Qxg6 {[%clk 0:00:20.4]}
26... Qd8 {[%clk 0:00:19.8]} 27. Nf6+ {[%clk 0:00:17.7]} 27... Rxf6 {[%clk
0:00:20]} 28. exf6 {[%clk 0:00:19.6]} 28... Qxf6 {[%clk 0:00:21.3]} 29. Qe8+
{[%clk 0:00:21.2]} 29... Qf8 {[%clk 0:00:21]} 30. Qg6 {[%clk 0:00:22.5]} 30...
Qf7 {[%clk 0:00:21.2]} 31. Qe4 {[%clk 0:00:24.1]} 31... b5 {[%clk 0:00:18.6]}
32. Qxc6 {[%clk 0:00:24.8]} 32... Rb8 {[%clk 0:00:20]} 33. Rfd1 {[%clk
0:00:25.5]} 33... Bb7 {[%clk 0:00:20.3]} 34. Qxb5 {[%clk 0:00:26.4]} 34... a6
{[%clk 0:00:17.3]} 35. Qb6 {[%clk 0:00:21.5]} 35... e5 {[%clk 0:00:15.6]} 36.
Rd8+ {[%clk 0:00:22.1]} 36... Rxd8 {[%clk 0:00:15.7]} 37. Qxd8+ {[%clk 0:00:24]}
37... Kh7 {[%clk 0:00:16.8]} 38. Bxb7 {[%clk 0:00:19.3]} 38... Qxb7 {[%clk
0:00:18.2]} 39. Qd2 {[%clk 0:00:21]} 39... exf4 {[%clk 0:00:13.9]} 40. Rxc4
{[%clk 0:00:20.8]} 40... fxg3+ {[%clk 0:00:14.3]} 41. Kxg3 {[%clk 0:00:22.6]}
41... Qb8+ {[%clk 0:00:14.1]} 42. Kg2 {[%clk 0:00:22.8]} 42... Qb7+ {[%clk
0:00:10.8]} 43. Kg1 {[%clk 0:00:23.5]} 43... Qb6+ {[%clk 0:00:11]} 44. Kf1
{[%clk 0:00:23.2]} 44... Qf6+ {[%clk 0:00:10.3]} 45. Qf2 {[%clk 0:00:24.1]}
45... Qa1+ {[%clk 0:00:09.8]} 46. Kg2 {[%clk 0:00:25]} 46... Qe5 {[%clk
0:00:03.6]} 47. Qc2+ {[%clk 0:00:24.1]} 47... Kg8 {[%clk 0:00:04.4]} 48. Rc8+
{[%clk 0:00:25.5]} 48... Bf8 {[%clk 0:00:05.7]} 49. Qc4+ {[%clk 0:00:26.1]}
49... Kh8 {[%clk 0:00:06.9]} 50. Rxf8+ {[%clk 0:00:26.2]} 1-0

[Event "*** Titled Tuesday Blitz AM"]
[Site "Chess.com"]
[Date "2020.01.07"]
[Round "3"]
[White "Jabberwockiez"]
[Black "Azatic"]
[Result "1-0"]
[WhiteElo "2274"]
[BlackElo "2559"]
[TimeControl "180+2"]
[EndTime "9:38:18 PST"]
[Termination "Jabberwockiez won by resignation"]

1. e4 {[%clk 0:03:01.9]} 1... c5 {[%clk 0:03:01.1]} 2. Nc3 {[%clk 0:03:02.5]}
2... e6 {[%clk 0:03:02.4]} 3. Nf3 {[%clk 0:03:03.2]} 3... a6 {[%clk 0:03:03.8]}
4. d4 {[%clk 0:03:04.3]} 4... cxd4 {[%clk 0:03:05.7]} 5. Nxd4 {[%clk 0:03:05.9]}
5... Qc7 {[%clk 0:03:07.2]} 6. Bd3 {[%clk 0:03:06.7]} 6... Nc6 {[%clk
0:03:07.1]} 7. Nxc6 {[%clk 0:03:06.6]} 7... bxc6 {[%clk 0:03:09]} 8. O-O {[%clk
0:03:06.1]} 8... d5 {[%clk 0:03:10]} 9. Bg5 {[%clk 0:02:50.7]} 9... Be7 {[%clk
0:03:06.6]} 10. Qd2 {[%clk 0:02:40.8]} 10... h6 {[%clk 0:03:05.6]} 11. Bxe7
{[%clk 0:02:24.3]} 11... Nxe7 {[%clk 0:03:07.5]} 12. f4 {[%clk 0:02:25.7]} 12...
Bb7 {[%clk 0:03:05.6]} 13. Kh1 {[%clk 0:02:22.3]} 13... c5 {[%clk 0:03:05]} 14.
exd5 {[%clk 0:02:14.4]} 14... Nxd5 {[%clk 0:02:57.7]} 15. Nxd5 {[%clk 0:02:14]}
15... Bxd5 {[%clk 0:02:59.6]} 16. f5 {[%clk 0:02:11.5]} 16... c4 {[%clk
0:02:48.2]} 17. fxe6 {[%clk 0:02:07]} 17... Bxe6 {[%clk 0:02:30.5]} 18. Be4
{[%clk 0:01:59.3]} 18... Rd8 {[%clk 0:02:31.4]} 19. Qb4 {[%clk 0:01:58.1]} 19...
Qd6 {[%clk 0:01:57.5]} 20. Qa4+ {[%clk 0:01:49.8]} 20... Ke7 {[%clk 0:01:54.4]}
21. c3 {[%clk 0:01:47.5]} 21... Rb8 {[%clk 0:01:52]} 22. Rad1 {[%clk 0:01:44.9]}
22... Qc5 {[%clk 0:01:35.4]} 23. Qxa6 {[%clk 0:01:39.9]} 23... Rxb2 {[%clk
0:01:25.6]} 24. Rb1 {[%clk 0:00:51.8]} 24... Rxb1 {[%clk 0:01:18.2]} 25. Rxb1
{[%clk 0:00:53.7]} 25... Rd8 {[%clk 0:01:19.5]} 26. a4 {[%clk 0:00:36.5]} 26...
Qe3 {[%clk 0:00:51.4]} 27. Qb7+ {[%clk 0:00:29.6]} 27... Kf8 {[%clk 0:00:45.5]}
28. a5 {[%clk 0:00:28.4]} 28... Qd2 {[%clk 0:00:29.1]} 29. Bf3 {[%clk 0:00:25]}
29... Bf5 {[%clk 0:00:30.4]} 30. Rg1 {[%clk 0:00:19.8]} 30... Rd7 {[%clk
0:00:31.5]} 31. Qb8+ {[%clk 0:00:20]} 31... Ke7 {[%clk 0:00:32.1]} 32. a6 {[%clk
0:00:20]} 32... Qe3 {[%clk 0:00:14.3]} 33. Qb4+ {[%clk 0:00:19.2]} 33... Kf6
{[%clk 0:00:13.7]} 34. Ra1 {[%clk 0:00:20.3]} 34... Qa7 {[%clk 0:00:12.2]} 35.
Qb5 {[%clk 0:00:19.8]} 35... g5 {[%clk 0:00:12.3]} 36. Qc6+ {[%clk 0:00:20.6]}
36... Kg7 {[%clk 0:00:13]} 37. Qxc4 {[%clk 0:00:20.8]} 37... Rd6 {[%clk
0:00:10]} 38. h3 {[%clk 0:00:21.7]} 38... h5 {[%clk 0:00:10.4]} 39. Bd5 {[%clk
0:00:21.8]} 39... g4 {[%clk 0:00:10.9]} 40. Bxf7 {[%clk 0:00:22.7]} 40... gxh3
{[%clk 0:00:11.2]} 41. Kh2 {[%clk 0:00:19.6]} 41... Rf6 {[%clk 0:00:08.8]} 42.
Bd5 {[%clk 0:00:19.8]} 42... Qb8+ {[%clk 0:00:10]} 43. Kh1 {[%clk 0:00:19.6]}
43... hxg2+ {[%clk 0:00:11.2]} 44. Bxg2 {[%clk 0:00:21.5]} 44... Be6 {[%clk
0:00:12.6]} 45. Qd4 {[%clk 0:00:21.5]} 45... Qb2 {[%clk 0:00:08.9]} 46. Rf1
{[%clk 0:00:20.8]} 46... Bf5 {[%clk 0:00:08.7]} 47. Rxf5 {[%clk 0:00:19.9]}
47... Qb1+ {[%clk 0:00:10.1]} 48. Rf1 {[%clk 0:00:20.2]} 48... Kg8 {[%clk
0:00:08]} 49. Qxf6 {[%clk 0:00:20.3]} 1-0

[Event "*** Titled Tuesday Blitz AM"]
[Site "Chess.com"]
[Date "2020.01.07"]
[Round "3"]
[White "Firouzja2003"]
[Black "Peroncio"]
[Result "1/2-1/2"]
[WhiteElo "3084"]
[BlackElo "2752"]
[TimeControl "180+2"]
[EndTime "9:38:21 PST"]
[Termination "Game drawn by repetition"]

1. Nf3 {[%clk 0:03:01.4]} 1... Nf6 {[%clk 0:03:00.7]} 2. g3 {[%clk 0:03:02.4]}
2... g6 {[%clk 0:03:01.6]} 3. Bg2 {[%clk 0:03:03.4]} 3... Bg7 {[%clk 0:03:03.4]}
4. O-O {[%clk 0:03:04.5]} 4... O-O {[%clk 0:03:05.1]} 5. c4 {[%clk 0:03:01.6]}
5... d6 {[%clk 0:03:06.1]} 6. Nc3 {[%clk 0:02:59.4]} 6... e5 {[%clk 0:03:05.8]}
7. d4 {[%clk 0:03:00.3]} 7... Nbd7 {[%clk 0:02:59.7]} 8. e4 {[%clk 0:03:00.1]}
8... exd4 {[%clk 0:03:00.3]} 9. Nxd4 {[%clk 0:03:01.1]} 9... Re8 {[%clk
0:03:01.2]} 10. Be3 {[%clk 0:02:37.6]} 10... Nc5 {[%clk 0:03:00.9]} 11. f3
{[%clk 0:02:36.5]} 11... a5 {[%clk 0:02:47.3]} 12. Qd2 {[%clk 0:02:35.1]} 12...
c6 {[%clk 0:02:47.8]} 13. Rad1 {[%clk 0:02:32]} 13... Qc7 {[%clk 0:02:49.1]} 14.
b3 {[%clk 0:02:27.8]} 14... h5 {[%clk 0:02:26.9]} 15. Nde2 {[%clk 0:02:26.5]}
15... Bf8 {[%clk 0:02:26.2]} 16. Kh1 {[%clk 0:02:22.1]} 16... Be6 {[%clk
0:02:24.5]} 17. Bg5 {[%clk 0:02:19]} 17... Nh7 {[%clk 0:02:23]} 18. Bf4 {[%clk
0:02:19.9]} 18... Rad8 {[%clk 0:02:21.6]} 19. Nd4 {[%clk 0:02:20.1]} 19... Bc8
{[%clk 0:02:22.2]} 20. h3 {[%clk 0:02:18.3]} 20... Qe7 {[%clk 0:02:14.1]} 21.
Rfe1 {[%clk 0:02:04.1]} 21... Bg7 {[%clk 0:02:12.4]} 22. Be3 {[%clk 0:02:00.2]}
22... Qc7 {[%clk 0:01:32.8]} 23. f4 {[%clk 0:01:46.9]} 23... Nf6 {[%clk
0:01:21]} 24. Bf2 {[%clk 0:01:47]} 24... Re7 {[%clk 0:01:20.6]} 25. Nc2 {[%clk
0:01:24.4]} 25... Ree8 {[%clk 0:01:20.7]} 26. Nd4 {[%clk 0:01:14.8]} 26... Re7
{[%clk 0:01:14.2]} 27. Qc2 {[%clk 0:01:12.4]} 27... Ree8 {[%clk 0:01:09.6]} 28.
a3 {[%clk 0:01:06.5]} 28... Bh6 {[%clk 0:01:09.7]} 29. b4 {[%clk 0:01:04.4]}
29... axb4 {[%clk 0:01:11.6]} 30. axb4 {[%clk 0:01:06.3]} 30... Na6 {[%clk
0:01:13.3]} 31. b5 {[%clk 0:01:04.2]} 31... Nb4 {[%clk 0:01:14.9]} 32. Qb3
{[%clk 0:01:03.1]} 32... c5 {[%clk 0:01:16.3]} 33. Nf3 {[%clk 0:01:00.4]} 33...
b6 {[%clk 0:01:14.5]} 34. Ng5 {[%clk 0:00:51.8]} 34... Bb7 {[%clk 0:01:11.1]}
35. Qb2 {[%clk 0:00:50]} 35... Bg7 {[%clk 0:01:11.6]} 36. Qb1 {[%clk 0:00:46.7]}
36... Nh7 {[%clk 0:01:12]} 37. Nd5 {[%clk 0:00:37.4]} 37... Nxd5 {[%clk
0:00:54]} 38. exd5 {[%clk 0:00:39.3]} 38... Nxg5 {[%clk 0:00:51.7]} 39. fxg5
{[%clk 0:00:41.2]} 39... Be5 {[%clk 0:00:48.1]} 40. Re3 {[%clk 0:00:41.9]} 40...
Qe7 {[%clk 0:00:45.4]} 41. h4 {[%clk 0:00:42]} 41... Bc8 {[%clk 0:00:45.4]} 42.
Rde1 {[%clk 0:00:42.8]} 42... Bg4 {[%clk 0:00:46.9]} 43. Kh2 {[%clk 0:00:38.8]}
43... Qd7 {[%clk 0:00:47.9]} 44. Qd3 {[%clk 0:00:36]} 44... Ra8 {[%clk
0:00:48.5]} 45. Kg1 {[%clk 0:00:30.8]} 45... Ra2 {[%clk 0:00:48.9]} 46. Bf3
{[%clk 0:00:15.5]} 46... Bxf3 {[%clk 0:00:43.6]} 47. Rxf3 {[%clk 0:00:17.4]}
47... Rxf2 {[%clk 0:00:36.6]} 48. Kxf2 {[%clk 0:00:12.8]} 48... Bd4+ {[%clk
0:00:38]} 49. Kf1 {[%clk 0:00:13.4]} 49... Rxe1+ {[%clk 0:00:36.9]} 50. Kxe1
{[%clk 0:00:14.7]} 50... Qa7 {[%clk 0:00:35]} 51. Rf4 {[%clk 0:00:07.2]} 51...
Qa1+ {[%clk 0:00:35.1]} 52. Ke2 {[%clk 0:00:08.6]} 52... Qa2+ {[%clk 0:00:35.5]}
53. Kd1 {[%clk 0:00:10]} 53... Qa1+ {[%clk 0:00:36]} 54. Kd2 {[%clk 0:00:11.5]}
54... Qa2+ {[%clk 0:00:37.5]} 55. Kd1 {[%clk 0:00:09.5]} 55... Qa1+ {[%clk
0:00:38]} 56. Ke2 {[%clk 0:00:11]} 56... Qa2+ {[%clk 0:00:39.1]} 57. Kf1 {[%clk
0:00:10.9]} 57... Qa1+ {[%clk 0:00:40.3]} 58. Ke2 {[%clk 0:00:12.3]} 1/2-1/2

[Event "*** Titled Tuesday Blitz AM"]
[Site "Chess.com"]
[Date "2020.01.07"]
[Round "3"]
[White "ALeks_Ivlev"]
[Black "JozefKneht"]
[Result "0-1"]
[WhiteElo "2599"]
[BlackElo "2404"]
[TimeControl "180+2"]
[EndTime "9:38:23 PST"]
[Termination "JozefKneht won by resignation"]

1. d4 {[%clk 0:02:56.1]} 1... d5 {[%clk 0:03:00]} 2. c4 {[%clk 0:02:57.1]} 2...
e6 {[%clk 0:03:01]} 3. Nf3 {[%clk 0:02:57.7]} 3... Nf6 {[%clk 0:03:02.1]} 4. g3
{[%clk 0:02:59]} 4... dxc4 {[%clk 0:03:03.2]} 5. Bg2 {[%clk 0:02:59.9]} 5... a6
{[%clk 0:03:04]} 6. O-O {[%clk 0:02:59.7]} 6... Nc6 {[%clk 0:03:05.2]} 7. a4
{[%clk 0:02:52.3]} 7... Rb8 {[%clk 0:02:55.4]} 8. Ne5 {[%clk 0:02:41.5]} 8...
Nxd4 {[%clk 0:02:37.3]} 9. e3 {[%clk 0:02:40.7]} 9... Nb3 {[%clk 0:02:28.2]} 10.
Ra2 {[%clk 0:02:28.1]} 10... Qxd1 {[%clk 0:02:24]} 11. Rxd1 {[%clk 0:02:28.2]}
11... Nd5 {[%clk 0:01:53.2]} 12. Nxc4 {[%clk 0:02:27.3]} 12... Nb4 {[%clk
0:01:51.1]} 13. Ra3 {[%clk 0:02:28.6]} 13... Nxc1 {[%clk 0:01:45.9]} 14. Rxc1
{[%clk 0:02:29.5]} 14... Be7 {[%clk 0:01:37]} 15. Nbd2 {[%clk 0:02:23.6]} 15...
O-O {[%clk 0:01:31.2]} 16. Na5 {[%clk 0:02:22.3]} 16... c6 {[%clk 0:01:28.1]}
17. Ndc4 {[%clk 0:02:14.3]} 17... Rd8 {[%clk 0:01:28]} 18. Rb3 {[%clk
0:01:54.3]} 18... Bd7 {[%clk 0:01:20.3]} 19. h4 {[%clk 0:01:34]} 19... Be8
{[%clk 0:01:20.2]} 20. Be4 {[%clk 0:01:22]} 20... b6 {[%clk 0:01:07.6]} 21. Rxb4
{[%clk 0:00:45.6]} 21... Bxb4 {[%clk 0:01:04.7]} 22. Nb3 {[%clk 0:00:47.5]}
22... f6 {[%clk 0:00:57.7]} 23. Nd4 {[%clk 0:00:41.7]} 23... Kf7 {[%clk
0:00:52.5]} 24. Bxc6 {[%clk 0:00:37.8]} 24... Bc5 {[%clk 0:00:39.7]} 25. Bxe8+
{[%clk 0:00:36.3]} 25... Rxe8 {[%clk 0:00:40.3]} 26. Nb3 {[%clk 0:00:37.3]}
26... Bb4 {[%clk 0:00:38]} 27. Nd4 {[%clk 0:00:36]} 27... Rec8 {[%clk
0:00:36.9]} 28. Rc2 {[%clk 0:00:21.1]} 28... b5 {[%clk 0:00:36]} 29. axb5 {[%clk
0:00:22]} 29... axb5 {[%clk 0:00:37.1]} 30. Nc6 {[%clk 0:00:17.6]} 30... Rxc6
{[%clk 0:00:36.4]} 31. Ne5+ {[%clk 0:00:17.7]} 31... fxe5 {[%clk 0:00:38.3]} 32.
Rxc6 {[%clk 0:00:19.6]} 32... Rb7 {[%clk 0:00:36.8]} 33. h5 {[%clk 0:00:20.3]}
33... h6 {[%clk 0:00:37.4]} 34. Kg2 {[%clk 0:00:21.7]} 34... Kf6 {[%clk
0:00:38.5]} 35. Kf3 {[%clk 0:00:23.2]} 35... Be7 {[%clk 0:00:39.1]} 36. Ke4
{[%clk 0:00:24.2]} 36... b4 {[%clk 0:00:41]} 37. f4 {[%clk 0:00:24.9]} 37...
exf4 {[%clk 0:00:42]} 38. gxf4 {[%clk 0:00:26]} 38... Rb5 {[%clk 0:00:43.1]} 39.
b3 {[%clk 0:00:24.8]} 39... Rxh5 {[%clk 0:00:43.8]} 40. Rb6 {[%clk 0:00:25.6]}
40... Rh1 {[%clk 0:00:42.6]} 41. f5 {[%clk 0:00:26.8]} 41... Rh4+ {[%clk
0:00:40.3]} 42. Kd3 {[%clk 0:00:25.3]} 42... Kxf5 {[%clk 0:00:41.2]} 43. Rb7
{[%clk 0:00:25.7]} 43... Kf6 {[%clk 0:00:42.2]} 44. Ra7 {[%clk 0:00:26.2]} 44...
Rh1 {[%clk 0:00:40.5]} 45. Ke4 {[%clk 0:00:26.7]} 45... h5 {[%clk 0:00:41.1]}
46. Ra5 {[%clk 0:00:26.7]} 46... g5 {[%clk 0:00:41.5]} 47. Ra8 {[%clk
0:00:27.4]} 47... g4 {[%clk 0:00:40.8]} 48. Rh8 {[%clk 0:00:28.8]} 48... Bd6
{[%clk 0:00:39.5]} 49. Rh6+ {[%clk 0:00:29.4]} 49... Kf7 {[%clk 0:00:40.7]} 50.
Rh7+ {[%clk 0:00:30.6]} 50... Kg6 {[%clk 0:00:41.8]} 51. Rd7 {[%clk 0:00:32.2]}
51... Bg3 {[%clk 0:00:41.6]} 52. Rb7 {[%clk 0:00:29.8]} 52... Be1 {[%clk
0:00:41.1]} 53. Rb8 {[%clk 0:00:30.3]} 53... Bc3 {[%clk 0:00:41.1]} 54. Kf4
{[%clk 0:00:30.3]} 54... Rf1+ {[%clk 0:00:38.9]} 55. Kg3 {[%clk 0:00:31.4]}
55... Rf3+ {[%clk 0:00:40.2]} 56. Kg2 {[%clk 0:00:32.6]} 56... Rxe3 {[%clk
0:00:41.3]} 57. Rb6 {[%clk 0:00:33.4]} 57... h4 {[%clk 0:00:41.4]} 58. Rb8
{[%clk 0:00:32.1]} 58... h3+ {[%clk 0:00:41.6]} 59. Kf2 {[%clk 0:00:32.8]} 59...
Rf3+ {[%clk 0:00:42.4]} 60. Kg1 {[%clk 0:00:34.1]} 60... h2+ {[%clk 0:00:42.6]}
61. Kxh2 {[%clk 0:00:34.9]} 61... Be5+ {[%clk 0:00:43.6]} 62. Kh1 {[%clk
0:00:36.5]} 62... Bxb8 {[%clk 0:00:45.1]} 0-1

[Event "*** Titled Tuesday Blitz AM"]
[Site "Chess.com"]
[Date "2020.01.07"]
[Round "3"]
[White "MasterKroket"]
[Black "HovmoellerHest"]
[Result "0-1"]
[WhiteElo "2394"]
[BlackElo "2327"]
[TimeControl "180+2"]
[EndTime "9:38:33 PST"]
[Termination "HovmoellerHest won on time"]

1. d4 {[%clk 0:03:01.9]} 1... Nf6 {[%clk 0:02:59.8]} 2. c4 {[%clk 0:03:01.8]}
2... e6 {[%clk 0:03:01.3]} 3. Nf3 {[%clk 0:03:01.3]} 3... Bb4+ {[%clk
0:03:01.2]} 4. Bd2 {[%clk 0:03:01.9]} 4... Qe7 {[%clk 0:03:01.2]} 5. Qc2 {[%clk
0:03:01.1]} 5... d5 {[%clk 0:02:46.8]} 6. g3 {[%clk 0:03:01]} 6... O-O {[%clk
0:02:46.5]} 7. Bg2 {[%clk 0:03:02.2]} 7... b6 {[%clk 0:02:35.4]} 8. cxd5 {[%clk
0:03:00.3]} 8... exd5 {[%clk 0:02:32.8]} 9. O-O {[%clk 0:02:57.2]} 9... Bd6
{[%clk 0:02:29.4]} 10. Nc3 {[%clk 0:02:57]} 10... c6 {[%clk 0:02:29]} 11. Rfe1
{[%clk 0:02:49]} 11... Re8 {[%clk 0:02:12.9]} 12. a3 {[%clk 0:02:44.5]} 12... a5
{[%clk 0:02:12.7]} 13. Bf4 {[%clk 0:02:20.6]} 13... Bxf4 {[%clk 0:02:09.8]} 14.
gxf4 {[%clk 0:02:21.8]} 14... Qd6 {[%clk 0:01:57]} 15. Ne5 {[%clk 0:02:21.6]}
15... Nbd7 {[%clk 0:01:33.8]} 16. Rac1 {[%clk 0:02:18.4]} 16... Bb7 {[%clk
0:01:34.7]} 17. e3 {[%clk 0:02:15.5]} 17... Rac8 {[%clk 0:01:27.7]} 18. Bh3
{[%clk 0:02:12.7]} 18... Rc7 {[%clk 0:01:26.8]} 19. Na4 {[%clk 0:02:11.5]} 19...
c5 {[%clk 0:01:21.7]} 20. Bxd7 {[%clk 0:01:51.8]} 20... Nxd7 {[%clk 0:01:22.2]}
21. Qf5 {[%clk 0:01:51.1]} 21... Nxe5 {[%clk 0:01:13.3]} 22. fxe5 {[%clk
0:01:50.3]} 22... Qc6 {[%clk 0:01:14.3]} 23. Nc3 {[%clk 0:01:32.3]} 23... c4
{[%clk 0:01:14.5]} 24. Ne2 {[%clk 0:01:31.3]} 24... Bc8 {[%clk 0:01:14.8]} 25.
Qg5 {[%clk 0:01:30.4]} 25... Qg6 {[%clk 0:00:59.6]} 26. h4 {[%clk 0:01:28.8]}
26... Bf5 {[%clk 0:00:52.6]} 27. Nf4 {[%clk 0:01:27.4]} 27... Qxg5+ {[%clk
0:00:50.7]} 28. hxg5 {[%clk 0:01:29.3]} 28... Be4 {[%clk 0:00:52.2]} 29. Kh2
{[%clk 0:01:25.6]} 29... b5 {[%clk 0:00:49.8]} 30. Kg3 {[%clk 0:01:27]} 30...
Rd7 {[%clk 0:00:45.3]} 31. f3 {[%clk 0:01:26.4]} 31... Bg6 {[%clk 0:00:46.2]}
32. Rh1 {[%clk 0:00:59.8]} 32... Kf8 {[%clk 0:00:46]} 33. Rh2 {[%clk 0:00:59.4]}
33... Ke7 {[%clk 0:00:46.7]} 34. b3 {[%clk 0:00:52.5]} 34... Rb8 {[%clk
0:00:43]} 35. Rb2 {[%clk 0:00:51.8]} 35... Rbb7 {[%clk 0:00:31.8]} 36. bxc4
{[%clk 0:00:50.6]} 36... dxc4 {[%clk 0:00:30.2]} 37. d5 {[%clk 0:00:44.8]} 37...
Bd3 {[%clk 0:00:28.2]} 38. d6+ {[%clk 0:00:45.2]} 38... Kd8 {[%clk 0:00:28.7]}
39. Nxd3 {[%clk 0:00:40.1]} 39... cxd3 {[%clk 0:00:29.6]} 40. Rc3 {[%clk
0:00:41.5]} 40... f6 {[%clk 0:00:30.3]} 41. f4 {[%clk 0:00:39.9]} 41... fxe5
{[%clk 0:00:27]} 42. fxe5 {[%clk 0:00:41.2]} 42... Rf7 {[%clk 0:00:25.7]} 43.
Rxd3 {[%clk 0:00:40.3]} 43... Kd7 {[%clk 0:00:26.9]} 44. Rd5 {[%clk 0:00:40.3]}
44... Ke6 {[%clk 0:00:24.8]} 45. Rdxb5 {[%clk 0:00:40.4]} 45... Rxb5 {[%clk
0:00:25.2]} 46. Rxb5 {[%clk 0:00:42.3]} 46... Ra7 {[%clk 0:00:24.6]} 47. Kf4
{[%clk 0:00:42.1]} 47... h5 {[%clk 0:00:24.5]} 48. gxh6 {[%clk 0:00:37.9]} 48...
gxh6 {[%clk 0:00:25.8]} 49. Rc5 {[%clk 0:00:37.7]} 49... a4 {[%clk 0:00:25.4]}
50. Rc7 {[%clk 0:00:27]} 50... Ra5 {[%clk 0:00:23.3]} 51. Re7+ {[%clk
0:00:26.8]} 51... Kd5 {[%clk 0:00:24.6]} 52. d7 {[%clk 0:00:28.2]} 52... Ra8
{[%clk 0:00:25.3]} 53. e6 {[%clk 0:00:29.2]} 53... h5 {[%clk 0:00:21.9]} 0-1

[Event "*** Titled Tuesday Blitz AM"]
[Site "Chess.com"]
[Date "2020.01.07"]
[Round "3"]
[White "MiroVlasenko"]
[Black "Fandorine"]
[Result "0-1"]
[WhiteElo "2704"]
[BlackElo "2903"]
[TimeControl "180+2"]
[EndTime "9:38:40 PST"]
[Termination "Fandorine won by resignation"]

1. d4 {[%clk 0:03:01.9]} 1... Nf6 {[%clk 0:03:00.7]} 2. Bg5 {[%clk 0:03:01.5]}
2... g6 {[%clk 0:03:01.9]} 3. Bxf6 {[%clk 0:03:01.9]} 3... exf6 {[%clk
0:03:03.3]} 4. g3 {[%clk 0:03:03.6]} 4... d5 {[%clk 0:03:03.5]} 5. Bg2 {[%clk
0:03:05.5]} 5... c6 {[%clk 0:03:04.4]} 6. e3 {[%clk 0:03:05.2]} 6... Bd6 {[%clk
0:03:05.7]} 7. Ne2 {[%clk 0:03:05.7]} 7... O-O {[%clk 0:03:06.9]} 8. Nd2 {[%clk
0:03:05.9]} 8... Nd7 {[%clk 0:03:07.1]} 9. c4 {[%clk 0:03:05.6]} 9... dxc4
{[%clk 0:03:06]} 10. Nxc4 {[%clk 0:03:07.5]} 10... Bb4+ {[%clk 0:03:05.2]} 11.
Nc3 {[%clk 0:03:07.1]} 11... Nb6 {[%clk 0:03:06.7]} 12. Nxb6 {[%clk 0:03:05.1]}
12... Qxb6 {[%clk 0:03:04]} 13. O-O {[%clk 0:03:03.6]} 13... Be6 {[%clk
0:03:03.5]} 14. d5 {[%clk 0:02:51.7]} 14... Bxc3 {[%clk 0:02:50.5]} 15. dxe6
{[%clk 0:02:51.3]} 15... Qxb2 {[%clk 0:02:42.2]} 16. exf7+ {[%clk 0:02:20]}
16... Rxf7 {[%clk 0:02:37.3]} 17. Qd3 {[%clk 0:02:02.5]} 17... Qd2 {[%clk
0:02:28.8]} 18. Rad1 {[%clk 0:01:49]} 18... Qxd3 {[%clk 0:02:27.7]} 19. Rxd3
{[%clk 0:01:50.9]} 19... Ba5 {[%clk 0:02:28.9]} 20. Rb1 {[%clk 0:01:49.6]} 20...
Rd8 {[%clk 0:02:09.1]} 21. Rdb3 {[%clk 0:01:45.3]} 21... Bb6 {[%clk 0:01:18.8]}
22. a4 {[%clk 0:01:44.3]} 22... Rdd7 {[%clk 0:01:19.1]} 23. Bh3 {[%clk
0:01:36.2]} 23... f5 {[%clk 0:01:16.2]} 24. Bf1 {[%clk 0:01:35.9]} 24... Kg7
{[%clk 0:01:14.2]} 25. Ra1 {[%clk 0:01:32.8]} 25... Ba5 {[%clk 0:01:11.6]} 26.
Rab1 {[%clk 0:01:28.3]} 26... c5 {[%clk 0:01:10]} 27. Bc4 {[%clk 0:01:22.3]}
27... Rfe7 {[%clk 0:01:10.6]} 28. R3b2 {[%clk 0:01:11.2]} 28... b6 {[%clk
0:01:09.6]} 29. h4 {[%clk 0:01:08.6]} 29... Re4 {[%clk 0:01:03.7]} 30. Bb5
{[%clk 0:01:08.2]} 30... Rd6 {[%clk 0:01:04.7]} 31. Kg2 {[%clk 0:01:08.5]} 31...
Kf6 {[%clk 0:01:03.5]} 32. Rc2 {[%clk 0:01:09.2]} 32... Bb4 {[%clk 0:01:02.9]}
33. Kf3 {[%clk 0:01:08.8]} 33... Re5 {[%clk 0:01:02]} 34. Rg1 {[%clk 0:01:00.9]}
34... Red5 {[%clk 0:00:59.6]} 35. g4 {[%clk 0:00:56.4]} 35... Rd1 {[%clk
0:00:50]} 36. Rxd1 {[%clk 0:00:52.6]} 36... Rxd1 {[%clk 0:00:51.9]} 37. gxf5
{[%clk 0:00:48.1]} 37... gxf5 {[%clk 0:00:53.8]} 38. Rc4 {[%clk 0:00:33.9]}
38... Rd6 {[%clk 0:00:34.3]} 39. Ba6 {[%clk 0:00:27.9]} 39... Ke5 {[%clk
0:00:18.4]} 40. Rf4 {[%clk 0:00:19.9]} 40... Rd8 {[%clk 0:00:11]} 41. Bb5 {[%clk
0:00:19.6]} 41... Bc3 {[%clk 0:00:06.2]} 42. Ke2 {[%clk 0:00:20.2]} 42... Rd2+
{[%clk 0:00:04.4]} 43. Kf3 {[%clk 0:00:21.2]} 43... Kf6 {[%clk 0:00:05.8]} 44.
Ba6 {[%clk 0:00:20.9]} 44... Be5 {[%clk 0:00:06.4]} 45. Rc4 {[%clk 0:00:21.3]}
45... Rd1 {[%clk 0:00:07.2]} 46. Rc2 {[%clk 0:00:21.9]} 46... Rh1 {[%clk
0:00:07.3]} 47. Rc4 {[%clk 0:00:22.9]} 47... h5 {[%clk 0:00:07.1]} 48. Bc8
{[%clk 0:00:23.2]} 48... Rg1 {[%clk 0:00:08.2]} 49. a5 {[%clk 0:00:22.3]} 49...
Rg4 {[%clk 0:00:09.1]} 50. Ba6 {[%clk 0:00:22.3]} 50... Rxc4 {[%clk 0:00:06.5]}
51. Bxc4 {[%clk 0:00:23.8]} 51... bxa5 {[%clk 0:00:08.4]} 52. Ke2 {[%clk
0:00:24.9]} 52... a4 {[%clk 0:00:09.3]} 53. f4 {[%clk 0:00:25.9]} 53... Bb2
{[%clk 0:00:09.6]} 54. Kd3 {[%clk 0:00:27.1]} 54... Bc1 {[%clk 0:00:09.8]} 55.
Ba2 {[%clk 0:00:27.2]} 55... a3 {[%clk 0:00:11]} 56. Bc4 {[%clk 0:00:28]} 56...
Kg6 {[%clk 0:00:08]} 57. Ba2 {[%clk 0:00:29]} 57... Bb2 {[%clk 0:00:09.4]} 58.
Bc4 {[%clk 0:00:30.6]} 58... Bf6 {[%clk 0:00:10.9]} 0-1